[Event "Titled Tuesday Blitz April 18 Late 2023"]
[White "Yuan, Qingyu"]
[Black "Eljanov, Pavel"]
[WhiteFideId "8609772"]
[BlackFideId "14102951"]
[WhiteElo "2359"]
[BlackElo "2598"]
[Result "0-1"]
[Round "11"]
[TimeControl "180+2"]
[Date "2023.04.18"]
[WhiteClock "0:00:02"]
[BlackClock "0:00:29"]

1. e4 {[%clk 0:03:00]}  c6 {[%clk 0:02:59]} 2. d4 {[%clk 0:03:00]}  d5 {[%clk 0:02:59]} 3. exd5 {[%clk 0:03:01]}  cxd5 {[%clk 0:02:59]} 4. Bd3 {[%clk 0:03:02]}  Nc6 {[%clk 0:02:59]} 5. c3 {[%clk 0:03:03]}  Nf6 {[%clk 0:02:59]} 6. h3 {[%clk 0:02:55]}  g6 {[%clk 0:02:59]} 7. Nf3 {[%clk 0:02:54]}  Bf5 {[%clk 0:02:59]} 8. O-O {[%clk 0:02:54]}  e6 {[%clk 0:02:57]} 9. Bb5 {[%clk 0:02:51]}  Bd6 {[%clk 0:02:56]} 10. Ne5 {[%clk 0:02:45]}  Qc7 {[%clk 0:02:56]} 11. Qa4 {[%clk 0:02:43]}  O-O {[%clk 0:02:55]} 12. Bh6 {[%clk 0:02:18]}  Rfc8 {[%clk 0:02:53]} 13. Nf3 {[%clk 0:02:08]}  a6 {[%clk 0:02:41]} 14. Be2 {[%clk 0:02:07]}  b5 {[%clk 0:02:41]} 15. Qd1 {[%clk 0:02:05]}  b4 {[%clk 0:02:37]} 16. cxb4 {[%clk 0:01:44]}  Bxb4 {[%clk 0:02:05]} 17. Nc3 {[%clk 0:01:38]}  Ne4 {[%clk 0:01:42]} 18. Na4 {[%clk 0:01:23]}  Bd6 {[%clk 0:01:35]} 19. g4 {[%clk 0:01:20]}  Kh8 {[%clk 0:01:23]} 20. Kh1 {[%clk 0:01:02]}  Bf4 {[%clk 0:01:14]} 21. Bxf4 {[%clk 0:00:58]}  Qxf4 {[%clk 0:01:15]} 22. Qc1 {[%clk 0:00:54]}  Qd6 {[%clk 0:01:14]} 23. Qh6 {[%clk 0:00:43]}  Ne7 {[%clk 0:01:06]} 24. Rac1 {[%clk 0:00:35]}  g5 {[%clk 0:00:53]} 25. Nxg5 {[%clk 0:00:21]}  Bg6 {[%clk 0:00:50]} 26. Nxe4 {[%clk 0:00:14]}  dxe4 {[%clk 0:00:50]} 27. Qe3 {[%clk 0:00:12]}  Nd5 {[%clk 0:00:49]} 28. Qd2 {[%clk 0:00:09]}  e3 {[%clk 0:00:47]} 29. fxe3 {[%clk 0:00:09]}  Qg3 {[%clk 0:00:46]} 30. Bd3 {[%clk 0:00:04]}  Bxd3 {[%clk 0:00:43]} 31. Qxd3 {[%clk 0:00:04]}  Qxh3+ {[%clk 0:00:44]} 32. Kg1 {[%clk 0:00:04]}  Qg3+ {[%clk 0:00:42]} 33. Kh1 {[%clk 0:00:04]}  Nxe3 {[%clk 0:00:36]} 34. Qe2 {[%clk 0:00:01]}  Nxf1 {[%clk 0:00:32]} 35. Rxf1 {[%clk 0:00:02]}  Rg8 {[%clk 0:00:31]} 36. Rf3 {[%clk 0:00:02]}  Qh4+ {[%clk 0:00:30]} 37. Kg1 {[%clk 0:00:02]}  Rxg4+ {[%clk 0:00:30]} 38. Rg3 {[%clk 0:00:02]}  Qxg3+ {[%clk 0:00:29]} 0-1


[Site "https://www.chess.com"]

[Event "Titled Tuesday Blitz April 18 Late 2023"]
[White "Quesada Perez, Yasser"]
[Black "Djokic, Mihailo"]
[WhiteFideId "3509362"]
[BlackFideId "976440"]
[WhiteElo "2496"]
[BlackElo "2294"]
[Result "1-0"]
[Round "11"]
[TimeControl "180+2"]
[Date "2023.04.18"]
[WhiteClock "0:00:36"]
[BlackClock "0:00:53"]

1. d4 {[%clk 0:03:00]}  Nf6 {[%clk 0:02:59]} 2. Bf4 {[%clk 0:03:00]}  g6 {[%clk 0:03:00]} 3. e3 {[%clk 0:03:01]}  Bg7 {[%clk 0:03:00]} 4. Nf3 {[%clk 0:03:01]}  O-O {[%clk 0:03:01]} 5. h3 {[%clk 0:03:00]}  d6 {[%clk 0:03:01]} 6. Be2 {[%clk 0:03:01]}  Nbd7 {[%clk 0:03:02]} 7. O-O {[%clk 0:03:01]}  Qe8 {[%clk 0:03:03]} 8. Bh2 {[%clk 0:03:01]}  e5 {[%clk 0:03:03]} 9. c4 {[%clk 0:03:01]}  Ne4 {[%clk 0:03:02]} 10. Nc3 {[%clk 0:03:00]}  Nxc3 {[%clk 0:03:02]} 11. bxc3 {[%clk 0:03:00]}  Qe7 {[%clk 0:03:02]} 12. a4 {[%clk 0:02:56]}  a5 {[%clk 0:03:01]} 13. Rb1 {[%clk 0:02:53]}  b6 {[%clk 0:03:01]} 14. c5 {[%clk 0:02:35]}  bxc5 {[%clk 0:03:00]} 15. dxe5 {[%clk 0:02:35]}  Nxe5 {[%clk 0:02:59]} 16. Bxe5 {[%clk 0:02:31]}  Bxe5 {[%clk 0:02:59]} 17. Nxe5 {[%clk 0:02:08]}  Qxe5 {[%clk 0:02:58]} 18. Bf3 {[%clk 0:02:09]}  Ba6 {[%clk 0:02:45]} 19. Bxa8 {[%clk 0:02:00]}  Bxf1 {[%clk 0:02:44]} 20. Bd5 {[%clk 0:01:58]}  Ba6 {[%clk 0:02:39]} 21. c4 {[%clk 0:01:57]}  c6 {[%clk 0:02:36]} 22. Bxc6 {[%clk 0:01:48]}  Bxc4 {[%clk 0:02:37]} 23. Qd2 {[%clk 0:01:45]}  Rc8 {[%clk 0:01:48]} 24. Bf3 {[%clk 0:01:42]}  d5 {[%clk 0:01:43]} 25. Qxa5 {[%clk 0:01:40]}  d4 {[%clk 0:01:40]} 26. exd4 {[%clk 0:01:39]}  Qxd4 {[%clk 0:01:41]} 27. Rc1 {[%clk 0:01:27]}  Be6 {[%clk 0:01:40]} 28. Bb7 {[%clk 0:00:58]}  Rb8 {[%clk 0:01:32]} 29. Qc7 {[%clk 0:00:55]}  Rd8 {[%clk 0:01:14]} 30. a5 {[%clk 0:00:55]}  c4 {[%clk 0:01:11]} 31. a6 {[%clk 0:00:52]}  Rd7 {[%clk 0:01:12]} 32. Qb8+ {[%clk 0:00:52]}  Rd8 {[%clk 0:01:12]} 33. a7 {[%clk 0:00:51]}  Kg7 {[%clk 0:00:59]} 34. Qxd8 {[%clk 0:00:47]}  Qxa7 {[%clk 0:00:58]} 35. Bf3 {[%clk 0:00:41]}  Qc5 {[%clk 0:00:55]} 36. Qd2 {[%clk 0:00:41]}  h5 {[%clk 0:00:54]} 37. Qc3+ {[%clk 0:00:40]}  Kh7 {[%clk 0:00:55]} 38. Ra1 {[%clk 0:00:39]}  Qg5 {[%clk 0:00:53]} 39. Ra8 {[%clk 0:00:36]} 1-0


[Site "https://www.chess.com"]

[Event "Titled Tuesday Blitz April 18 Late 2023"]
[White "Prohaszka, Peter"]
[Black "Costachi, Mihnea"]
[WhiteFideId "726265"]
[BlackFideId "1217518"]
[WhiteElo "2626"]
[BlackElo "2456"]
[Result "0-1"]
[Round "11"]
[TimeControl "180+2"]
[Date "2023.04.18"]
[WhiteClock "0:00:13"]
[BlackClock "0:00:18"]

1. d4 {[%clk 0:02:54]}  Nf6 {[%clk 0:02:59]} 2. c3 {[%clk 0:02:46]}  d5 {[%clk 0:02:58]} 3. Bf4 {[%clk 0:02:44]}  g6 {[%clk 0:02:48]} 4. e3 {[%clk 0:02:42]}  Bg7 {[%clk 0:02:48]} 5. Nf3 {[%clk 0:02:42]}  O-O {[%clk 0:02:49]} 6. h4 {[%clk 0:02:40]}  Bg4 {[%clk 0:02:48]} 7. Qb3 {[%clk 0:02:33]}  b6 {[%clk 0:02:48]} 8. Ne5 {[%clk 0:02:33]}  c5 {[%clk 0:02:36]} 9. Nxg4 {[%clk 0:02:30]}  Nxg4 {[%clk 0:02:36]} 10. Be2 {[%clk 0:02:26]}  e5 {[%clk 0:02:25]} 11. Bg5 {[%clk 0:02:23]}  f6 {[%clk 0:02:12]} 12. Bxg4 {[%clk 0:02:20]}  c4 {[%clk 0:01:53]} 13. Qb5 {[%clk 0:02:13]}  Re8 {[%clk 0:01:27]} 14. Bf4 {[%clk 0:01:43]}  a6 {[%clk 0:01:16]} 15. Qa4 {[%clk 0:01:38]}  exf4 {[%clk 0:01:13]} 16. Nd2 {[%clk 0:01:24]}  fxe3 {[%clk 0:01:12]} 17. fxe3 {[%clk 0:01:25]}  Rxe3+ {[%clk 0:01:12]} 18. Kf2 {[%clk 0:01:26]}  Bh6 {[%clk 0:01:05]} 19. Rhe1 {[%clk 0:01:18]}  b5 {[%clk 0:00:52]} 20. Qc2 {[%clk 0:01:17]}  f5 {[%clk 0:00:50]} 21. Rxe3 {[%clk 0:01:17]}  Bxe3+ {[%clk 0:00:41]} 22. Kxe3 {[%clk 0:01:16]}  fxg4 {[%clk 0:00:42]} 23. Nf1 {[%clk 0:00:53]}  Qxh4 {[%clk 0:00:41]} 24. Qf2 {[%clk 0:00:53]}  Qxf2+ {[%clk 0:00:36]} 25. Kxf2 {[%clk 0:00:54]}  Nd7 {[%clk 0:00:35]} 26. Re1 {[%clk 0:00:54]}  Kf7 {[%clk 0:00:32]} 27. Ne3 {[%clk 0:00:39]}  Nf6 {[%clk 0:00:31]} 28. Nc2 {[%clk 0:00:34]}  a5 {[%clk 0:00:26]} 29. Na3 {[%clk 0:00:30]}  b4 {[%clk 0:00:26]} 30. Nb5 {[%clk 0:00:30]}  Ne4+ {[%clk 0:00:20]} 31. Ke3 {[%clk 0:00:25]}  bxc3 {[%clk 0:00:20]} 32. b3 {[%clk 0:00:20]}  cxb3 {[%clk 0:00:19]} 33. axb3 {[%clk 0:00:19]}  Rb8 {[%clk 0:00:16]} 34. Nc7 {[%clk 0:00:18]}  Rxb3 {[%clk 0:00:12]} 35. Kd3 {[%clk 0:00:14]}  Nf6 {[%clk 0:00:05]} 36. Ne6 {[%clk 0:00:13]}  Rb2 {[%clk 0:00:03]} 37. Ng5+ {[%clk 0:00:07]}  Kg7 {[%clk 0:00:03]} 38. Re7+ {[%clk 0:00:05]}  Kh6 {[%clk 0:00:03]} 39. Nf7+ {[%clk 0:00:04]}  Kh5 {[%clk 0:00:03]} 40. Kxc3 {[%clk 0:00:03]}  Rxg2 {[%clk 0:00:03]} 41. Kb3 {[%clk 0:00:03]}  Kh4 {[%clk 0:00:03]} 42. Ne5 {[%clk 0:00:02]}  Kg3 {[%clk 0:00:02]} 43. Rf7 {[%clk 0:00:03]}  Ne4 {[%clk 0:00:03]} 44. Rxh7 {[%clk 0:00:03]}  Rd2 {[%clk 0:00:03]} 45. Nxg6 {[%clk 0:00:02]}  Rd3+ {[%clk 0:00:03]} 46. Ka4 {[%clk 0:00:02]}  Rxd4+ {[%clk 0:00:04]} 47. Kxa5 {[%clk 0:00:03]}  Rd1 {[%clk 0:00:05]} 48. Kb4 {[%clk 0:00:02]}  d4 {[%clk 0:00:05]} 49. Re7 {[%clk 0:00:02]}  Ng5 {[%clk 0:00:05]} 50. Re5 {[%clk 0:00:01]}  Nf3 {[%clk 0:00:06]} 51. Rd5 {[%clk 0:00:02]}  d3 {[%clk 0:00:06]} 52. Kc3 {[%clk 0:00:02]}  d2 {[%clk 0:00:07]} 53. Kb2 {[%clk 0:00:01]}  Rc1 {[%clk 0:00:07]} 54. Ne5 {[%clk 0:00:01]}  d1=Q {[%clk 0:00:08]} 55. Rxd1 {[%clk 0:00:02]}  Rxd1 {[%clk 0:00:08]} 56. Kc2 {[%clk 0:00:01]}  Nxe5 {[%clk 0:00:08]} 57. Kxd1 {[%clk 0:00:01]}  Kf2 {[%clk 0:00:09]} 58. Kd2 {[%clk 0:00:02]}  g3 {[%clk 0:00:10]} 59. Kc3 {[%clk 0:00:03]}  g2 {[%clk 0:00:11]} 60. Kd4 {[%clk 0:00:04]}  g1=Q {[%clk 0:00:11]} 61. Ke4 {[%clk 0:00:04]}  Qg2+ {[%clk 0:00:11]} 62. Kf5 {[%clk 0:00:05]}  Qf3+ {[%clk 0:00:12]} 63. Ke6 {[%clk 0:00:06]}  Nd3 {[%clk 0:00:12]} 64. Kd6 {[%clk 0:00:06]}  Ne1 {[%clk 0:00:13]} 65. Ke6 {[%clk 0:00:07]}  Qf4 {[%clk 0:00:13]} 66. Kd5 {[%clk 0:00:07]}  Qe3 {[%clk 0:00:13]} 67. Kc4 {[%clk 0:00:07]}  Kf3 {[%clk 0:00:14]} 68. Kb4 {[%clk 0:00:08]}  Kf4 {[%clk 0:00:15]} 69. Kc4 {[%clk 0:00:08]}  Qd2 {[%clk 0:00:15]} 70. Kb5 {[%clk 0:00:09]}  Qc3 {[%clk 0:00:15]} 71. Kb6 {[%clk 0:00:09]}  Qc4 {[%clk 0:00:15]} 72. Kb7 {[%clk 0:00:10]}  Qc5 {[%clk 0:00:15]} 73. Ka6 {[%clk 0:00:11]}  Qb4 {[%clk 0:00:15]} 74. Ka7 {[%clk 0:00:11]}  Ke5 {[%clk 0:00:16]} 75. Ka8 {[%clk 0:00:12]}  Kd6 {[%clk 0:00:17]} 76. Ka7 {[%clk 0:00:13]}  Kc7 {[%clk 0:00:18]} 0-1


[Site "https://www.chess.com"]

[Event "Titled Tuesday Blitz April 18 Late 2023"]
[White "Baskakov, Egor"]
[Black "Sabuk, Piotr"]
[WhiteFideId "24197866"]
[BlackFideId "1137565"]
[WhiteElo "2212"]
[BlackElo "2298"]
[Result "0-1"]
[Round "11"]
[TimeControl "180+2"]
[Date "2023.04.18"]
[WhiteClock "0:00:41"]
[BlackClock "0:00:04"]

1. e4 {[%clk 0:03:00]}  e5 {[%clk 0:02:57]} 2. Nc3 {[%clk 0:03:00]}  Nf6 {[%clk 0:02:57]} 3. g3 {[%clk 0:03:00]}  Nc6 {[%clk 0:02:56]} 4. Bg2 {[%clk 0:03:00]}  Bc5 {[%clk 0:02:56]} 5. h3 {[%clk 0:03:00]}  O-O {[%clk 0:02:55]} 6. Nge2 {[%clk 0:03:00]}  Re8 {[%clk 0:02:51]} 7. O-O {[%clk 0:03:01]}  Nd4 {[%clk 0:02:51]} 8. d3 {[%clk 0:03:01]}  c6 {[%clk 0:02:50]} 9. Kh2 {[%clk 0:02:56]}  d5 {[%clk 0:02:47]} 10. exd5 {[%clk 0:02:57]}  Nxd5 {[%clk 0:02:41]} 11. Nxd5 {[%clk 0:02:56]}  cxd5 {[%clk 0:02:39]} 12. Nxd4 {[%clk 0:02:52]}  Bxd4 {[%clk 0:02:38]} 13. c3 {[%clk 0:02:52]}  Bb6 {[%clk 0:02:38]} 14. f4 {[%clk 0:02:47]}  e4 {[%clk 0:02:24]} 15. f5 {[%clk 0:02:42]}  e3 {[%clk 0:02:06]} 16. Qg4 {[%clk 0:02:37]}  Qf6 {[%clk 0:01:59]} 17. d4 {[%clk 0:02:31]}  e2 {[%clk 0:01:57]} 18. Bg5 {[%clk 0:02:23]}  exf1=N+ {[%clk 0:01:18]} 19. Rxf1 {[%clk 0:02:18]}  Qd6 {[%clk 0:01:11]} 20. Bf4 {[%clk 0:02:16]}  Qc6 {[%clk 0:00:48]} 21. Qh5 {[%clk 0:02:02]}  Bd7 {[%clk 0:00:40]} 22. c4 {[%clk 0:01:58]}  Qxc4 {[%clk 0:00:29]} 23. f6 {[%clk 0:01:59]}  Qxd4 {[%clk 0:00:23]} 24. fxg7 {[%clk 0:01:59]}  Be6 {[%clk 0:00:16]} 25. Be5 {[%clk 0:01:55]}  Qd3 {[%clk 0:00:15]} 26. Rf3 {[%clk 0:01:47]}  Qg6 {[%clk 0:00:15]} 27. Qh4 {[%clk 0:01:47]}  Bxh3 {[%clk 0:00:13]} 28. Rf6 {[%clk 0:01:39]}  Qg4 {[%clk 0:00:13]} 29. Bxd5 {[%clk 0:01:28]}  Qxh4 {[%clk 0:00:09]} 30. Bxf7+ {[%clk 0:01:13]}  Kxg7 {[%clk 0:00:09]} 31. Bc3 {[%clk 0:01:01]}  Re2+ {[%clk 0:00:08]} 32. Rf2+ {[%clk 0:01:00]}  Kh6 {[%clk 0:00:08]} 33. Rxe2 {[%clk 0:00:56]}  Qg4 {[%clk 0:00:07]} 34. Rd2 {[%clk 0:00:47]}  Rd8 {[%clk 0:00:05]} 35. Rc2 {[%clk 0:00:44]}  Bg1+ {[%clk 0:00:05]} 36. Kh1 {[%clk 0:00:41]}  Rd1 {[%clk 0:00:04]} 0-1


[Site "https://www.chess.com"]

[Event "Titled Tuesday Blitz April 18 Late 2023"]
[White "Gubajdullin, Alexei"]
[Black "Smirnov, Pavel"]
[WhiteFideId "4141202"]
[BlackFideId "4123425"]
[WhiteElo "2279"]
[BlackElo "2519"]
[Result "1-0"]
[Round "11"]
[TimeControl "180+2"]
[Date "2023.04.18"]
[WhiteClock "0:00:12"]
[BlackClock "0:00:02"]

1. c4 {[%clk 0:02:58]}  e6 {[%clk 0:02:59]} 2. Nf3 {[%clk 0:02:56]}  d5 {[%clk 0:03:00]} 3. b3 {[%clk 0:02:55]}  Nf6 {[%clk 0:03:00]} 4. g3 {[%clk 0:02:55]}  Be7 {[%clk 0:02:59]} 5. Bg2 {[%clk 0:02:55]}  O-O {[%clk 0:02:59]} 6. O-O {[%clk 0:02:55]}  c5 {[%clk 0:03:00]} 7. e3 {[%clk 0:02:55]}  Nc6 {[%clk 0:02:57]} 8. Nc3 {[%clk 0:02:55]}  d4 {[%clk 0:02:56]} 9. exd4 {[%clk 0:02:52]}  cxd4 {[%clk 0:02:57]} 10. Nb5 {[%clk 0:02:52]}  a6 {[%clk 0:02:56]} 11. Na3 {[%clk 0:02:51]}  e5 {[%clk 0:02:57]} 12. Re1 {[%clk 0:02:44]}  e4 {[%clk 0:02:56]} 13. Ng5 {[%clk 0:02:44]}  Bg4 {[%clk 0:02:55]} 14. f3 {[%clk 0:02:44]}  exf3 {[%clk 0:02:53]} 15. Bxf3 {[%clk 0:02:44]}  Bxf3 {[%clk 0:02:48]} 16. Nxf3 {[%clk 0:02:43]}  d3 {[%clk 0:02:49]} 17. Kg2 {[%clk 0:02:37]}  Bc5 {[%clk 0:02:46]} 18. Nb1 {[%clk 0:02:29]}  Ng4 {[%clk 0:02:45]} 19. Ba3 {[%clk 0:02:26]}  Bxa3 {[%clk 0:02:30]} 20. Nxa3 {[%clk 0:02:26]}  Qb6 {[%clk 0:02:31]} 21. Re4 {[%clk 0:01:37]}  Nf2 {[%clk 0:02:11]} 22. Qg1 {[%clk 0:01:36]}  Qb4 {[%clk 0:01:55]} 23. Qxf2 {[%clk 0:01:33]}  Qxa3 {[%clk 0:01:55]} 24. Qe3 {[%clk 0:01:19]}  Qb2 {[%clk 0:01:54]} 25. Rf1 {[%clk 0:01:07]}  Qxa2 {[%clk 0:01:52]} 26. Qxd3 {[%clk 0:01:06]}  a5 {[%clk 0:01:47]} 27. Qc3 {[%clk 0:01:04]}  a4 {[%clk 0:01:44]} 28. b4 {[%clk 0:00:34]}  Qb3 {[%clk 0:01:33]} 29. Qxb3 {[%clk 0:00:33]}  axb3 {[%clk 0:01:33]} 30. Rb1 {[%clk 0:00:34]}  Ra3 {[%clk 0:01:25]} 31. Re3 {[%clk 0:00:33]}  Nxb4 {[%clk 0:01:18]} 32. Rexb3 {[%clk 0:00:32]}  Rxb3 {[%clk 0:01:18]} 33. Rxb3 {[%clk 0:00:32]}  Nc6 {[%clk 0:01:19]} 34. Rxb7 {[%clk 0:00:32]}  Rc8 {[%clk 0:01:20]} 35. d4 {[%clk 0:00:31]}  Na5 {[%clk 0:01:20]} 36. Rd7 {[%clk 0:00:24]}  Nxc4 {[%clk 0:01:20]} 37. Ng5 {[%clk 0:00:23]}  Ne3+ {[%clk 0:00:51]} 38. Kf3 {[%clk 0:00:23]}  Nc2 {[%clk 0:00:51]} 39. d5 {[%clk 0:00:18]}  h6 {[%clk 0:00:48]} 40. Ne4 {[%clk 0:00:18]}  f5 {[%clk 0:00:36]} 41. Nd6 {[%clk 0:00:17]}  Rc3+ {[%clk 0:00:34]} 42. Kf4 {[%clk 0:00:17]}  g6 {[%clk 0:00:16]} 43. Ke5 {[%clk 0:00:16]}  Nb4 {[%clk 0:00:15]} 44. Ne8 {[%clk 0:00:15]}  Re3+ {[%clk 0:00:15]} 45. Kf6 {[%clk 0:00:15]}  Rxe8 {[%clk 0:00:15]} 46. Kxg6 {[%clk 0:00:15]}  Nd3 {[%clk 0:00:10]} 47. Kxh6 {[%clk 0:00:15]}  Ne5 {[%clk 0:00:09]} 48. Rc7 {[%clk 0:00:14]}  Ng4+ {[%clk 0:00:07]} 49. Kg5 {[%clk 0:00:14]}  Nxh2 {[%clk 0:00:08]} 50. d6 {[%clk 0:00:14]}  Kf8 {[%clk 0:00:07]} 51. d7 {[%clk 0:00:12]}  Rd8 {[%clk 0:00:07]} 52. Kxf5 {[%clk 0:00:13]}  Nf3 {[%clk 0:00:06]} 53. Kf6 {[%clk 0:00:12]}  Nd4 {[%clk 0:00:03]} 54. Rc8 {[%clk 0:00:12]}  Nc6 {[%clk 0:00:02]} 55. Rxc6 {[%clk 0:00:12]} 1-0


[Site "https://www.chess.com"]

[Event "Titled Tuesday Blitz April 18 Late 2023"]
[White "Gaehwiler, Gabriel"]
[Black "Lenaerts, Lennert"]
[WhiteFideId "1314530"]
[BlackFideId "211435"]
[WhiteElo "2437"]
[BlackElo "2334"]
[Result "1-0"]
[Round "11"]
[TimeControl "180+2"]
[Date "2023.04.18"]
[WhiteClock "0:00:33"]
[BlackClock "0:00:48"]

1. d4 {[%clk 0:02:58]}  d5 {[%clk 0:02:59]} 2. c4 {[%clk 0:02:58]}  c6 {[%clk 0:03:00]} 3. Nf3 {[%clk 0:02:57]}  Nf6 {[%clk 0:03:00]} 4. Nc3 {[%clk 0:02:57]}  dxc4 {[%clk 0:03:00]} 5. a4 {[%clk 0:02:56]}  Bf5 {[%clk 0:02:59]} 6. Ne5 {[%clk 0:02:54]}  Nbd7 {[%clk 0:02:59]} 7. Nxc4 {[%clk 0:02:54]}  Nb6 {[%clk 0:03:00]} 8. Ne3 {[%clk 0:02:51]}  e6 {[%clk 0:02:59]} 9. Nxf5 {[%clk 0:02:50]}  exf5 {[%clk 0:03:00]} 10. g3 {[%clk 0:02:49]}  a5 {[%clk 0:02:52]} 11. Bg2 {[%clk 0:02:47]}  Be7 {[%clk 0:02:47]} 12. O-O {[%clk 0:02:42]}  O-O {[%clk 0:02:47]} 13. Bg5 {[%clk 0:02:42]}  Re8 {[%clk 0:02:39]} 14. Bxf6 {[%clk 0:02:37]}  Bxf6 {[%clk 0:02:38]} 15. e3 {[%clk 0:02:37]}  Rc8 {[%clk 0:02:28]} 16. Qb3 {[%clk 0:02:34]}  Re7 {[%clk 0:02:24]} 17. Rfd1 {[%clk 0:02:33]}  g6 {[%clk 0:02:19]} 18. Rd3 {[%clk 0:02:27]}  Rd7 {[%clk 0:02:19]} 19. Rdd1 {[%clk 0:02:23]}  Be7 {[%clk 0:02:01]} 20. Ne2 {[%clk 0:02:15]}  Bb4 {[%clk 0:01:56]} 21. Nf4 {[%clk 0:02:15]}  Nd5 {[%clk 0:01:52]} 22. Bxd5 {[%clk 0:02:02]}  cxd5 {[%clk 0:01:53]} 23. Rac1 {[%clk 0:02:02]}  Rc6 {[%clk 0:01:53]} 24. Rxc6 {[%clk 0:01:55]}  bxc6 {[%clk 0:01:54]} 25. Rc1 {[%clk 0:01:55]}  Rd6 {[%clk 0:01:51]} 26. Nd3 {[%clk 0:01:53]}  Qb6 {[%clk 0:01:46]} 27. Ne5 {[%clk 0:01:30]}  f6 {[%clk 0:01:45]} 28. Nd3 {[%clk 0:00:54]}  Rd7 {[%clk 0:01:39]} 29. Qc2 {[%clk 0:00:52]}  Rc7 {[%clk 0:01:32]} 30. Qb3 {[%clk 0:00:51]}  Kf7 {[%clk 0:01:27]} 31. Kg2 {[%clk 0:00:47]}  Rb7 {[%clk 0:01:21]} 32. Qc2 {[%clk 0:00:46]}  Rc7 {[%clk 0:01:20]} 33. h4 {[%clk 0:00:46]}  Bd6 {[%clk 0:01:13]} 34. h5 {[%clk 0:00:46]}  Ke6 {[%clk 0:00:58]} 35. Qc3 {[%clk 0:00:42]}  Qa6 {[%clk 0:00:54]} 36. Rc2 {[%clk 0:00:36]}  g5 {[%clk 0:00:52]} 37. Qd2 {[%clk 0:00:34]}  Kd7 {[%clk 0:00:49]} 38. Qe2 {[%clk 0:00:34]}  Rb7 {[%clk 0:00:48]} 39. Nc5+ {[%clk 0:00:33]} 1-0


[Site "https://www.chess.com"]

[Event "Titled Tuesday Blitz April 18 Late 2023"]
[White "Indjic, Aleksandar"]
[Black "Sanchez Alvares, Kelvin Antonio"]
[WhiteFideId "911925"]
[BlackFideId "3906680"]
[WhiteElo "2614"]
[BlackElo "2217"]
[Result "1-0"]
[Round "11"]
[TimeControl "180+2"]
[Date "2023.04.18"]
[WhiteClock "0:02:25"]
[BlackClock "0:02:39"]

1. e4 {[%clk 0:02:55]}  e5 {[%clk 0:02:59]} 2. Nf3 {[%clk 0:02:53]}  Nc6 {[%clk 0:02:58]} 3. Nc3 {[%clk 0:02:54]}  Bc5 {[%clk 0:02:58]} 4. Nxe5 {[%clk 0:02:52]}  Nxe5 {[%clk 0:02:58]} 5. d4 {[%clk 0:02:52]}  Bd6 {[%clk 0:02:59]} 6. dxe5 {[%clk 0:02:51]}  Bxe5 {[%clk 0:03:00]} 7. Bd3 {[%clk 0:02:47]}  Nf6 {[%clk 0:02:58]} 8. O-O {[%clk 0:02:44]}  d6 {[%clk 0:02:58]} 9. h3 {[%clk 0:02:38]}  O-O {[%clk 0:02:56]} 10. Bd2 {[%clk 0:02:36]}  Bd4 {[%clk 0:02:54]} 11. Qf3 {[%clk 0:02:35]}  Nd7 {[%clk 0:02:52]} 12. Qg3 {[%clk 0:02:34]}  Ne5 {[%clk 0:02:48]} 13. Be2 {[%clk 0:02:27]}  Be6 {[%clk 0:02:42]} 14. Rad1 {[%clk 0:02:26]}  Qf6 {[%clk 0:02:39]} 15. Bg5 {[%clk 0:02:25]} 1-0


[Site "https://www.chess.com"]

[Event "Titled Tuesday Blitz April 18 Late 2023"]
[White "Timmermans, Mark"]
[Black "Omranalhosani21"]
[WhiteFideId "1026399"]
[WhiteElo "2460"]
[BlackElo "2587"]
[Result "0-1"]
[Round "11"]
[TimeControl "180+2"]
[Date "2023.04.18"]
[WhiteClock "0:00:45"]
[BlackClock "0:00:30"]

1. Nf3 {[%clk 0:03:00]}  Nf6 {[%clk 0:02:55]} 2. c4 {[%clk 0:02:59]}  e6 {[%clk 0:02:55]} 3. b3 {[%clk 0:02:58]}  d5 {[%clk 0:02:54]} 4. e3 {[%clk 0:02:57]}  Be7 {[%clk 0:02:52]} 5. Bb2 {[%clk 0:02:52]}  O-O {[%clk 0:02:51]} 6. Be2 {[%clk 0:02:46]}  c5 {[%clk 0:02:51]} 7. O-O {[%clk 0:02:46]}  Nc6 {[%clk 0:02:51]} 8. cxd5 {[%clk 0:02:36]}  Nxd5 {[%clk 0:02:49]} 9. d4 {[%clk 0:02:34]}  Bf6 {[%clk 0:02:49]} 10. Bb5 {[%clk 0:02:06]}  cxd4 {[%clk 0:02:43]} 11. Bxc6 {[%clk 0:02:05]}  bxc6 {[%clk 0:02:43]} 12. Bxd4 {[%clk 0:02:05]}  c5 {[%clk 0:02:31]} 13. Bxf6 {[%clk 0:02:05]}  Qxf6 {[%clk 0:02:31]} 14. Nbd2 {[%clk 0:02:06]}  Ba6 {[%clk 0:02:31]} 15. Re1 {[%clk 0:02:02]}  Nb4 {[%clk 0:02:27]} 16. Ne4 {[%clk 0:01:56]}  Qe7 {[%clk 0:02:21]} 17. Qd6 {[%clk 0:01:51]}  Qxd6 {[%clk 0:02:16]} 18. Nxd6 {[%clk 0:01:52]}  Nc2 {[%clk 0:02:17]} 19. Rec1 {[%clk 0:01:46]}  Nxa1 {[%clk 0:02:17]} 20. Rxa1 {[%clk 0:01:47]}  Rfd8 {[%clk 0:02:13]} 21. Ne4 {[%clk 0:01:48]}  Rac8 {[%clk 0:02:11]} 22. Ne5 {[%clk 0:01:38]}  f6 {[%clk 0:02:06]} 23. Nc4 {[%clk 0:01:38]}  Bxc4 {[%clk 0:02:00]} 24. bxc4 {[%clk 0:01:39]}  Kf7 {[%clk 0:01:58]} 25. g4 {[%clk 0:01:39]}  h6 {[%clk 0:01:51]} 26. Rb1 {[%clk 0:01:34]}  Rb8 {[%clk 0:01:51]} 27. Rc1 {[%clk 0:01:33]}  Rb2 {[%clk 0:01:49]} 28. a4 {[%clk 0:01:32]}  Rdb8 {[%clk 0:01:35]} 29. Kg2 {[%clk 0:01:32]}  Ra2 {[%clk 0:01:28]} 30. Nxc5 {[%clk 0:01:30]}  Ke7 {[%clk 0:01:25]} 31. Rc3 {[%clk 0:01:22]}  Rbb2 {[%clk 0:01:20]} 32. Nd3 {[%clk 0:01:21]}  Rb8 {[%clk 0:00:58]} 33. c5 {[%clk 0:01:16]}  Rxa4 {[%clk 0:00:57]} 34. h3 {[%clk 0:01:15]}  Rc8 {[%clk 0:00:56]} 35. Kf3 {[%clk 0:01:14]}  a5 {[%clk 0:00:55]} 36. c6 {[%clk 0:01:14]}  Rc7 {[%clk 0:00:54]} 37. Nf4 {[%clk 0:01:11]}  Rb4 {[%clk 0:00:50]} 38. Rc5 {[%clk 0:01:10]}  a4 {[%clk 0:00:48]} 39. Nd3 {[%clk 0:01:09]}  Rb3 {[%clk 0:00:47]} 40. Nf4 {[%clk 0:01:06]}  a3 {[%clk 0:00:47]} 41. h4 {[%clk 0:01:04]}  Kd6 {[%clk 0:00:44]} 42. Ra5 {[%clk 0:01:03]}  Kxc6 {[%clk 0:00:44]} 43. Ne2 {[%clk 0:01:04]}  Kb6 {[%clk 0:00:43]} 44. Ra4 {[%clk 0:01:03]}  Ra7 {[%clk 0:00:44]} 45. Re4 {[%clk 0:00:59]}  a2 {[%clk 0:00:43]} 46. Rxe6+ {[%clk 0:00:59]}  Ka5 {[%clk 0:00:32]} 47. Nd4 {[%clk 0:01:00]}  Rb6 {[%clk 0:00:32]} 48. Re7 {[%clk 0:00:45]}  Rxe7 {[%clk 0:00:30]} 0-1


[Site "https://www.chess.com"]